bitfinex/quotes_ETHUSD_20241109
["timestamp","ask_amount","ask_price","bid_price","bid_amount"]
[1731179236056,0.7892,3073.7,3073.1,0.06508031]
[1731179236379,0.7892,3073.7,3073.0,1.81]
[1731179236914,0.7877,3074.9,3073.1,3.71887411]
[1731179237244,0.0713794,3074.8,3073.1,3.71887411]
[1731179237557,0.03235219,3074.8,3073.1,3.65381141]
[1731179238555,0.03235219,3074.8,3073.2,3.0]
[1731179239939,0.7877,3074.5,3073.3,0.37941198]
[1731179240157,0.82005219,3074.4,3072.6,3.65381141]
[1731179240356,0.8674458,3074.4,3072.7,0.4444753]
[1731179240674,0.8674458,3074.4,3072.8,0.37941198]
[1731179241167,0.8674458,3074.4,3072.9,0.37941198]
[1731179241461,0.8674458,3074.4,3072.3,3.37941198]
[1731179241676,0.55,3074.3,3072.4,0.37941198]
[1731179241828,0.82005219,3074.2,3072.3,0.37941198]
[1731179242028,0.82005219,3074.2,3072.4,0.44449906]
[1731179242276,0.82005219,3074.2,3072.4,0.06508708]
[1731179243537,0.82005219,3074.2,3072.3,0.37941198]
[1731179244078,0.82005219,3074.2,3073.0,1.81]
[1731179244630,0.7877,3074.1,3073.0,1.81]
[1731179244874,0.7877,3073.9,3073.0,1.81]
[1731179245036,0.82005219,3073.8,3073.0,1.81]
[1731179248392,0.55,3073.7,3073.0,1.81]
[1731179248553,0.85255219,3073.6,3073.0,1.81]
[1731179248997,0.85255219,3073.6,3073.0,0.9767]
[1731179249154,0.85255219,3073.6,3071.8,0.05657024]
[1731179250087,0.85255219,3073.6,3071.9,0.23722563]
[1731179250280,0.85255219,3073.6,3071.9,1.20722563]
[1731179250655,0.85255219,3073.6,3072.0,0.23715638]
[1731179251039,0.8202,3073.2,3072.0,0.2372154]
[1731179251153,0.03235219,3073.1,3072.0,0.2372154]
[1731179251348,0.8202,3073.0,3072.0,0.2372154]
[1731179251601,0.03235219,3072.9,3072.0,0.2372154]
[1731179253094,0.8202,3072.8,3072.0,0.2372154]
[1731179253296,0.03235219,3072.7,3071.9,0.97]
[1731179253596,0.8202,3072.6,3071.9,0.97]
[1731179253797,0.03235219,3072.5,3071.9,0.97]
[1731179256025,0.8202,3072.6,3071.9,0.97]
[1731179256226,0.8202,3072.6,3072.0,0.23708784]
[1731179256388,0.8202,3072.6,3072.0,0.302188]
[1731179256998,0.8202,3072.6,3072.0,0.23708784]
[1731179257393,0.03235219,3072.5,3071.9,0.97]
[1731179262727,0.03235219,3072.5,3071.9,4.62381141]
[1731179262924,0.8202,3072.6,3072.0,0.06510084]
[1731179263087,0.85255219,3073.9,3072.0,0.06510084]
[1731179263833,3.65381141,3073.7,3071.9,0.97]
[1731179266727,0.85255219,3073.4,3072.0,0.06510209]
[1731179267500,0.8202,3073.4,3072.0,3.0]
[1731179268205,0.03235219,3073.3,3072.0,3.0]
[1731179269416,0.03235219,3073.3,3071.9,3.97]
[1731179270397,0.03235219,3073.3,3072.0,0.06508577]
[1731179271742,0.03235219,3073.3,3071.9,3.97]
[1731179275724,0.03235219,3073.3,3072.0,0.06508557]
[1731179275725,0.7798,3073.2,3072.0,0.06508557]
[1731179275929,0.03235219,3073.1,3072.0,0.06508557]
[1731179276226,0.03235219,3073.1,3071.6,0.06509316]
[1731179276908,0.7798,3073.2,3071.9,3.0]
[1731179277100,0.03235219,3073.1,3071.9,3.0]
[1731179278338,0.03235219,3073.1,3071.5,3.29302046]
[1731179278843,0.03235219,3073.1,3071.5,0.29302046]
[1731179279151,0.03235219,3073.1,3071.6,0.06509564]
[1731179279501,0.03235219,3073.1,3071.8,2.97130124]
[1731179282039,0.03235219,3073.1,3071.5,0.29302046]
[1731179282439,0.03235219,3073.1,3071.5,3.29302046]
[1731179282639,0.7798,3073.0,3071.5,3.05656445]
[1731179282877,0.03235219,3072.9,3071.5,3.05656445]
[1731179284073,0.7798,3072.6,3071.5,0.05656445]
[1731179284378,0.03235219,3072.5,3071.2,2.97130124]
[1731179284573,0.03235219,3072.5,3071.3,0.0651059]
[1731179284777,0.03235219,3072.5,3071.2,2.97130124]
[1731179285004,0.03235219,3072.5,3070.9,6.22130124]
[1731179285142,0.7798,3072.4,3070.9,2.97130124]
[1731179285481,0.7798,3072.4,3070.8,0.05658954]
[1731179285482,0.7798,3072.2,3070.8,0.05658954]
[1731179285639,0.7798,3072.0,3070.9,0.06511534]
[1731179285846,0.03235219,3071.9,3070.9,0.06511534]
[1731179286578,0.03235219,3071.9,3070.6,2.97130124]
[1731179286579,0.03235219,3071.9,3070.7,3.0]
[1731179287680,0.03235219,3071.9,3070.8,0.06511566]
[1731179289174,0.03235219,3071.9,3070.7,3.0]
[1731179291104,0.03235219,3071.9,3070.4,0.05658446]
[1731179291105,0.7562,3071.8,3070.4,0.05658446]
[1731179291315,0.7562,3071.6,3070.0,2.97130124]
[1731179291608,0.03235219,3071.5,3070.0,3.02787184]
[1731179291779,0.03235219,3071.5,3070.3,0.06512696]
[1731179292681,0.7562,3071.6,3070.4,3.0]
[1731179293003,0.03235219,3071.5,3070.4,3.0]
[1731179293868,0.03235219,3071.5,3070.0,0.0565706]
[1731179293869,0.7562,3071.4,3070.0,0.0565706]
[1731179294070,0.78855219,3071.3,3069.7,2.97130124]
[1731179294767,0.78855219,3071.3,3069.6,0.05655959]
[1731179294768,2.97130124,3070.7,3069.6,0.05655959]
[1731179295107,0.7562,3070.5,3069.3,2.97130124]
[1731179295803,0.7562,3070.5,3069.6,2.97130124]
[1731179295968,0.7562,3070.5,3069.7,0.06513297]
[1731179296210,0.7562,3070.5,3069.6,2.97130124]
[1731179296643,0.7562,3070.5,3069.7,3.0]
[1731179296848,0.7562,3070.5,3069.8,0.06513255]
[1731179297142,0.7562,3070.5,3069.7,3.0]
[1731179297353,0.7562,3070.5,3069.8,0.06513492]
[1731179297852,0.7562,3070.5,3068.9,3.03785644]
[1731179298158,0.7562,3070.5,3069.2,2.97130124]
[1731179299058,0.7562,3070.5,3069.3,3.0]
[1731179299351,0.7562,3070.5,3069.1,0.57986953]
[1731179299525,0.03235219,3070.4,3069.1,0.33980272]
[1731179299860,0.7562,3070.3,3069.1,0.33980272]
[1731179300017,0.03235219,3070.2,3069.1,0.33980272]
[1731179300523,0.03235219,3070.2,3068.9,0.0565552]
[1731179301353,0.7562,3070.3,3069.0,0.06515265]
[1731179301748,0.7562,3070.3,3069.0,3.06515265]
[1731179302878,0.7562,3070.3,3069.5,2.97130124]
[1731179303151,0.7562,3070.3,3069.6,0.06513969]
[1731179303555,0.7562,3071.2,3069.8,2.97130124]
[1731179303714,0.03235219,3071.1,3069.9,0.06513139]
[1731179305344,0.7562,3071.2,3069.9,3.06513139]
[1731179307233,0.7562,3071.2,3069.9,3.44429075]
[1731179307631,0.7562,3071.2,3069.9,3.37915936]
[1731179307934,0.7562,3071.0,3069.9,0.37915936]
[1731179308130,0.7562,3070.8,3069.4,0.37915936]
[1731179308330,0.03235219,3070.7,3069.5,0.37915936]
[1731179308559,0.03235219,3070.7,3069.6,0.37915936]
[1731179308761,0.8255,3070.6,3069.4,0.37915936]
[1731179308931,0.03235219,3070.5,3069.4,0.37915936]
[1731179309372,0.8255,3070.4,3069.4,0.37915936]
[1731179309563,0.8255,3070.4,3068.9,3.36688296]
[1731179309564,0.8255,3070.4,3069.0,0.37915936]
[1731179309767,0.8255,3070.4,3069.1,0.44430801]
[1731179309975,0.8255,3070.4,3069.2,0.37915936]
[1731179310129,0.03235219,3070.3,3069.3,0.37915936]
[1731179310337,0.8255,3070.2,3068.9,0.64122366]
[1731179310670,0.03235219,3070.1,3069.0,0.37983227]
[1731179311080,0.8255,3070.2,3069.1,0.37983227]
[1731179311357,0.8255,3070.2,3069.2,3.35138285]
[1731179311694,0.8255,3070.2,3069.3,0.38008161]
[1731179311894,0.8255,3070.2,3069.4,0.38008161]
[1731179312319,0.8255,3070.0,3069.4,0.38008161]
[1731179312489,0.03235219,3069.9,3069.4,0.38008161]
[1731179313015,0.03235219,3069.9,3069.5,0.38008161]
[1731179313411,0.8255,3070.0,3069.5,0.38008161]
[1731179313803,0.8255,3070.0,3068.8,3.06515345]
[1731179314033,0.8255,3070.0,3068.9,0.38008161]
[1731179314325,0.8255,3070.0,3068.9,0.38050693]
[1731179314551,0.8255,3070.0,3069.0,0.38050693]
[1731179314746,0.8255,3070.0,3069.1,0.38050693]
[1731179315035,0.8255,3070.0,3069.3,2.97130124]
[1731179315206,0.8255,3070.0,3069.4,0.38050693]
[1731179315931,0.8255,3070.0,3069.5,0.38050693]
[1731179316138,0.8255,3070.0,3069.6,0.38050693]
[1731179316502,0.8255,3070.0,3069.7,0.38050693]
[1731179316833,0.8255,3070.0,3069.8,0.38050693]
[1731179317036,0.8255,3070.0,3069.1,0.38050693]
[1731179317243,0.8255,3070.0,3069.2,0.38050693]
[1731179317440,0.8255,3070.0,3069.0,2.97130124]
[1731179317441,0.8255,3070.0,3069.3,0.38050693]
[1731179317747,0.8255,3070.0,3069.4,0.44565312]
[1731179318031,0.03235219,3071.0,3069.4,0.44565312]
[1731179318032,0.8255,3070.9,3069.7,2.97130124]
[1731179318248,0.8255,3070.9,3069.5,3.38050693]
[1731179318423,0.8255,3070.9,3069.6,0.38050693]
[1731179318756,0.8255,3070.9,3069.7,0.38050693]
[1731179318893,0.8255,3070.9,3069.8,0.38050693]
[1731179319096,2.97130124,3071.5,3069.9,0.38050693]
[1731179319097,0.85785219,3070.8,3069.9,0.38050693]
[1731179319345,0.85785219,3070.8,3070.0,0.38050693]
[1731179319630,0.85785219,3070.8,3070.1,0.38050693]
[1731179319830,0.85785219,3070.8,3069.3,3.0]
[1731179319831,0.85785219,3070.8,3070.2,0.38050693]
[1731179320136,0.85785219,3070.8,3069.4,0.38050693]
[1731179320436,0.85785219,3070.8,3069.5,0.38050693]
[1731179320601,0.85785219,3070.8,3069.6,0.38050693]
[1731179320802,0.85785219,3070.8,3069.7,0.38050693]
[1731179321024,0.85785219,3070.8,3069.3,3.0]
[1731179321337,0.85785219,3070.8,3069.8,0.38127727]
[1731179321705,0.85785219,3070.8,3069.9,0.6991114]
[1731179321906,0.85785219,3070.8,3070.0,0.38127727]
[1731179322132,0.85785219,3070.8,3070.1,0.38127727]
[1731179322324,0.85785219,3070.8,3070.2,0.38127727]
[1731179322525,0.85785219,3070.8,3069.9,0.31783413]
[1731179322526,0.8255,3070.7,3070.3,0.38127727]
[1731179322725,0.38291534,3070.6,3070.4,0.38127727]
[1731179322931,0.03235219,3070.5,3070.4,0.38127727]
[1731179323153,0.03235219,3070.6,3069.9,0.38127727]
[1731179323308,0.03235219,3070.6,3070.0,0.38127727]
[1731179323502,0.03235219,3070.6,3070.1,0.38127727]
[1731179323828,0.03235219,3070.6,3070.2,0.38127727]
[1731179324003,0.8255,3070.5,3070.3,0.38127727]
[1731179324349,0.03235219,3070.4,3069.7,0.31783413]
[1731179324643,0.8255,3070.3,3069.8,0.38171298]
[1731179324815,0.01,3071.5,3069.9,0.38171298]
[1731179324816,0.8255,3070.1,3069.9,0.38171298]
[1731179325014,0.03235219,3070.0,3069.9,0.38184682]
[1731179325720,0.03235219,3070.0,3069.4,0.31820568]
[1731179326128,0.8255,3069.9,3069.3,0.31820568]
[1731179326724,0.03235219,3069.8,3069.2,0.31820568]
[1731179326923,0.8255,3069.7,3069.1,0.31820568]
[1731179327127,3.01,3070.3,3069.0,0.31820568]
[1731179327128,0.8255,3069.5,3069.0,0.31820568]
[1731179327310,0.03235219,3069.4,3069.0,0.31820568]
[1731179327906,0.03235219,3069.4,3068.9,0.31820568]
[1731179328415,0.03235219,3069.4,3068.1,2.97130124]
[1731179328416,0.03235219,3069.4,3068.8,0.31820568]
[1731179328751,0.03235219,3069.4,3068.2,0.06516999]
[1731179328953,0.03235219,3069.4,3068.8,0.31807378]
[1731179329708,0.8255,3069.5,3068.8,0.31807378]
[1731179330634,0.8255,3069.5,3068.7,0.31807378]
[1731179331036,0.8255,3069.5,3068.8,0.31807378]
[1731179331223,0.8255,3069.5,3068.7,0.31807378]
[1731179332019,0.03235219,3069.4,3068.4,2.97130124]
[1731179332219,0.03235219,3069.4,3068.7,0.31778394]
[1731179332920,0.03235219,3069.4,3068.6,0.31778394]
[1731179333150,0.03235219,3069.4,3068.5,0.31778394]
[1731179334368,0.03235219,3069.4,3068.4,0.31778394]
[1731179334684,0.8261,3069.3,3068.4,0.31778394]
[1731179334889,0.03235219,3069.2,3068.4,0.31778394]
[1731179335043,0.03235219,3069.2,3067.8,2.97130124]
[1731179335044,0.03235219,3069.2,3068.3,0.31778394]
[1731179335245,0.8261,3069.1,3068.3,0.31778394]
[1731179335572,0.03235219,3069.0,3068.3,0.31778394]
[1731179336493,0.03235219,3069.0,3068.2,0.31778394]
[1731179337194,0.03235219,3069.0,3068.1,0.31778394]
[1731179338439,0.8261,3068.9,3068.0,0.31778394]
[1731179338640,0.8261,3068.9,3067.7,0.05654571]
[1731179338641,0.03235219,3068.8,3067.8,0.31778394]
[1731179338889,0.03235219,3068.8,3067.8,0.31783096]
[1731179339089,0.8261,3068.7,3067.8,0.31783096]
[1731179339296,0.03235219,3068.6,3067.7,0.05654571]
[1731179339659,0.03235219,3068.6,3067.2,2.97130124]
[1731179339864,0.8261,3068.5,3067.2,2.97130124]
[1731179340170,0.03235219,3068.4,3067.3,0.06518821]
[1731179340981,0.8261,3068.5,3067.2,2.97130124]
[1731179340982,0.8261,3068.5,3067.9,2.97130124]
[1731179341399,0.8261,3068.5,3067.6,2.97130124]
[1731179342162,0.8261,3068.5,3067.7,0.06518373]
[1731179342875,0.8261,3068.5,3067.6,2.97130124]
[1731179343091,0.8261,3068.5,3067.9,2.97130124]
[1731179343969,0.8261,3068.5,3067.6,2.97130124]
[1731179344873,0.8261,3068.5,3067.4,3.0]
[1731179345862,0.8261,3068.5,3067.5,0.0651898]
[1731179348594,0.8261,3068.5,3067.6,2.97130124]
[1731179349221,0.8261,3068.5,3067.3,2.97130124]
[1731179349569,0.8261,3068.5,3067.4,3.0]
[1731179350614,0.8261,3068.5,3067.5,0.0651882]
[1731179351813,0.8261,3068.5,3067.4,3.0]
[1731179352229,0.8261,3068.5,3067.5,0.06518693]
[1731179352519,0.8261,3068.5,3066.1,0.34999228]
[1731179352520,0.8261,3068.5,3067.0,2.97130124]
[1731179352751,1.20584012,3068.5,3067.0,2.97130124]
[1731179352890,0.8261,3068.5,3067.0,2.97130124]
[1731179353093,0.8261,3068.5,3067.1,0.06519285]
[1731179353842,0.8261,3068.5,3067.3,2.97130124]
[1731179354132,0.8261,3068.5,3067.0,2.97130124]
[1731179354792,0.8261,3068.5,3067.1,0.06519281]
[1731179354994,0.03235219,3068.4,3067.1,0.06519281]
[1731179355416,0.7833,3068.3,3066.8,3.05651709]
[1731179355594,0.7833,3068.1,3066.9,2.97130124]
[1731179355793,0.03235219,3068.0,3067.0,0.0651964]
[1731179356206,0.03235219,3068.0,3066.9,2.97130124]
[1731179357031,0.7833,3067.9,3067.0,0.06520085]
[1731179357234,0.03235219,3067.8,3067.0,0.06520085]
[1731179357899,0.03235219,3067.8,3066.8,1.04520295]
[1731179358113,0.03235219,3067.8,3066.8,0.98]
[1731179359244,0.7833,3067.7,3066.8,0.98]
[1731179359807,0.7833,3067.5,3066.8,0.98]
[1731179360122,0.03235219,3067.4,3066.3,2.97130124]
[1731179361908,0.03235219,3067.4,3065.9,0.05649282]
[1731179362221,0.7833,3067.3,3065.9,3.02779406]
[1731179362398,0.7833,3067.1,3065.9,3.02779406]
[1731179362597,0.03235219,3067.0,3066.0,0.06521902]
[1731179362798,0.03235219,3067.0,3065.9,3.02779406]
[1731179363031,0.03235219,3067.0,3065.9,2.97130124]
[1731179363541,0.7833,3067.1,3065.6,0.98]
[1731179363542,0.7833,3067.1,3066.5,2.97130124]
[1731179363742,2.97130124,3068.5,3066.0,3.0]
[1731179363743,0.7833,3068.3,3066.8,2.97130124]
[1731179363948,0.03235219,3068.2,3067.1,2.97130124]
[1731179365241,0.7833,3068.3,3067.4,2.97130124]
[1731179365538,0.7833,3068.3,3067.2,3.0]
[1731179367919,0.7833,3068.3,3066.9,3.0]
[1731179368251,0.7833,3068.3,3067.4,2.97130124]
[1731179369045,0.7579,3068.1,3066.8,2.97130124]
[1731179369242,0.7579,3068.1,3066.9,3.0]
[1731179369243,0.03235219,3068.0,3066.9,3.0]
[1731179369601,0.03235219,3068.0,3067.1,2.97130124]
[1731179369805,0.03235219,3068.0,3066.3,4.42782022]
[1731179369806,0.7579,3068.1,3067.4,2.97130124]
[1731179370249,0.7579,3068.1,3067.5,0.06518258]
[1731179370545,0.7579,3068.1,3067.4,2.97130124]
[1731179371220,0.7579,3068.1,3067.7,2.97130124]
[1731179371421,0.03235219,3069.4,3068.0,2.97130124]
[1731179371618,0.03235219,3069.7,3068.8,2.97130124]
[1731179371819,0.03235219,3069.7,3068.5,2.97130124]
[1731179372130,0.7579,3069.6,3068.3,3.0]
[1731179372307,0.03235219,3069.5,3068.3,3.0]
[1731179373444,0.7579,3069.6,3068.3,3.0]
[1731179374147,0.7579,3069.6,3068.5,2.97130124]
[1731179375346,0.7579,3069.4,3068.3,3.0]
[1731179375545,0.03235219,3069.3,3068.3,3.0]
[1731179376051,0.7579,3069.2,3068.3,3.0]
[1731179376748,0.7579,3069.2,3067.9,2.97130124]
[1731179377252,0.7579,3069.2,3068.0,3.0]
[1731179377412,0.7579,3069.0,3068.0,3.0]
[1731179377842,0.7579,3069.0,3067.7,0.41843271]
[1731179378041,0.03235219,3068.9,3067.7,0.41843271]
[1731179378350,0.03235219,3068.9,3067.9,2.97130124]
[1731179379145,0.7579,3068.8,3067.9,2.97130124]
[1731179380943,0.7579,3068.8,3068.0,0.06517778]
[1731179383038,0.7579,3068.8,3068.1,0.23810263]
[1731179383238,0.7579,3068.8,3068.2,0.30328037]
[1731179383461,0.7579,3068.8,3068.2,0.06517774]
[1731179383871,0.7579,3068.8,3068.2,0.30328037]
[1731179384368,0.7579,3068.8,3068.2,0.06517774]
[1731179384571,0.7579,3068.8,3068.1,0.30328035]
[1731179384775,0.7579,3068.8,3068.1,0.06517772]
[1731179385079,0.7579,3068.8,3068.1,0.30328035]
[1731179385278,0.7579,3068.8,3068.1,0.06517772]
[1731179385572,0.7579,3068.8,3068.2,2.97130124]
[1731179385749,0.7579,3069.8,3068.5,2.97130124]
[1731179385952,0.03235219,3069.7,3068.6,0.30326611]
[1731179386278,0.03235219,3069.7,3068.7,0.23810263]
[1731179386524,0.03235219,3069.7,3068.8,0.06516347]
[1731179386938,0.03235219,3069.7,3068.8,3.03646471]
[1731179387090,0.03235219,3069.7,3068.9,0.23810263]
[1731179387293,0.7579,3069.6,3068.6,0.23810263]
[1731179387493,0.7579,3069.6,3068.7,0.06516534]
[1731179388722,0.7579,3069.6,3068.0,3.0]
[1731179388723,0.7579,3069.6,3068.8,3.20940387]
[1731179389233,0.7579,3069.6,3068.8,2.97130124]
[1731179389526,0.7579,3069.6,3068.9,0.2377144]
[1731179390086,0.7579,3069.6,3069.0,0.2377144]
[1731179390296,0.7579,3069.6,3068.9,0.2377144]
[1731179390529,0.7579,3069.6,3069.0,0.2377144]
[1731179390747,0.7579,3069.6,3068.9,0.2377144]
[1731179390921,0.7579,3069.6,3069.0,0.2377144]
[1731179391116,0.7579,3069.6,3068.9,0.2377144]
[1731179391319,0.7579,3069.6,3069.1,2.97130124]
[1731179391520,0.7579,3069.6,3069.2,0.2377144]
[1731179392602,0.7579,3069.6,3069.3,0.30286826]
[1731179393042,0.7579,3069.6,3069.3,0.2377144]
[1731179393231,0.7579,3069.6,3069.4,2.97130124]
[1731179393417,0.7579,3069.6,3069.4,3.20913564]
[1731179394649,0.7579,3069.6,3069.5,0.23798321]
[1731179394953,0.7579,3069.6,3069.4,2.97130124]
[1731179395243,0.7579,3069.6,3069.5,0.23798055]
[1731179396309,0.7579,3069.6,3069.4,2.97130124]
[1731179396607,0.7579,3069.6,3069.5,0.23796665]
[1731179398151,0.7862,3071.0,3069.5,0.30311585]
[1731179398318,0.7862,3070.8,3069.6,0.23796665]
[1731179398518,0.7862,3070.6,3069.7,0.23796665]
[1731179398712,0.03235219,3070.5,3069.8,0.23796665]
[1731179398911,0.03235219,3070.5,3069.9,0.23796665]
[1731179399113,0.03235219,3070.5,3070.0,0.23796665]
[1731179399312,0.03235219,3070.5,3070.1,0.23796665]
[1731179399519,0.7862,3070.6,3070.1,0.23796665]
[1731179399834,0.7862,3070.6,3070.2,0.23796665]
[1731179400001,0.7862,3070.6,3070.3,0.23796665]
[1731179400514,0.7862,3070.6,3069.4,0.7671]
[1731179400515,0.7862,3070.6,3070.4,0.23796665]
[1731179400715,0.7862,3070.6,3069.8,0.23796665]
[1731179400935,0.7862,3070.4,3069.9,0.23796665]
[1731179401104,0.7862,3070.4,3069.4,0.31742926]
[1731179401105,0.03235219,3070.3,3070.0,0.23796665]
[1731179401300,0.03235219,3070.3,3070.1,0.23796665]
[1731179401516,0.03235219,3070.3,3070.2,0.23796665]
[1731179401713,0.81855219,3070.3,3070.2,0.23796665]
[1731179402543,0.81855219,3070.3,3070.2,0.23810942]
[1731179404924,0.7862,3070.3,3070.2,0.23810942]
[1731179405933,0.7862,3070.3,3070.2,0.23800438]
[1731179407862,0.7862,3070.3,3069.3,0.31733918]
[1731179408030,0.81855219,3070.2,3069.4,0.23807324]
[1731179408367,0.81855219,3070.2,3069.5,0.23807324]
[1731179408547,0.81855219,3070.2,3069.6,0.23807324]
[1731179408752,0.81855219,3070.2,3069.7,0.23807324]
[1731179409054,0.81855219,3070.2,3069.8,0.23807324]
[1731179409266,0.81855219,3070.2,3069.9,0.23807324]
[1731179409449,0.81855219,3070.2,3070.0,0.23820233]
[1731179409625,0.81855219,3070.2,3070.1,0.23820233]
[1731179410225,0.81855219,3070.2,3069.3,0.31760311]
[1731179410438,0.81855219,3070.2,3069.4,0.23829841]
[1731179410627,0.81855219,3070.2,3069.5,0.23829841]
[1731179410829,0.81855219,3070.2,3069.6,0.23829841]
[1731179411024,0.81855219,3070.2,3068.8,2.97130124]
[1731179411025,0.81855219,3070.2,3069.7,0.23829841]
[1731179411338,0.81855219,3070.2,3069.8,0.23829841]
[1731179411536,0.81855219,3070.2,3069.9,0.23829841]
[1731179411759,0.81855219,3070.2,3070.0,0.23829841]
[1731179411961,0.81855219,3070.2,3070.1,0.23829841]
[1731179412743,0.81855219,3070.2,3069.3,0.3178644]
[1731179412949,0.81855219,3070.2,3069.4,0.2383983]
[1731179413138,0.81855219,3070.2,3069.5,0.2383983]
[1731179413469,0.81855219,3070.2,3069.6,0.2383983]
[1731179413773,0.81855219,3070.2,3068.9,0.06515757]
[1731179413774,0.81855219,3070.2,3069.7,0.2383983]
[1731179413967,0.81855219,3070.2,3069.8,0.2383983]
[1731179414278,0.81855219,3070.2,3069.9,0.2383983]
[1731179414431,1.3007,3070.1,3070.0,0.2383983]
[1731179414636,0.7507,3070.0,3069.2,0.3178644]
[1731179414837,0.7507,3069.8,3069.3,0.23864497]
[1731179415036,0.03235219,3069.7,3069.4,0.23864497]
[1731179415770,0.03235219,3069.7,3069.5,0.23864497]
[1731179416132,0.03235219,3069.7,3069.6,0.23864497]
[1731179416333,0.78305219,3069.7,3069.6,0.23864497]
[1731179416538,1.33305219,3069.7,3069.6,0.23864497]
[1731179416879,1.33305219,3069.7,3068.8,0.3178644]
[1731179417085,1.33305219,3069.7,3068.6,0.3178644]
[1731179417244,1.33305219,3069.7,3068.7,0.3178644]
[1731179417680,0.7507,3069.5,3068.5,0.3178644]
[1731179417850,0.7507,3069.2,3068.5,0.3178644]
[1731179418054,0.03235219,3069.1,3068.3,0.3178644]
[1731179418269,0.7507,3069.0,3068.1,0.3178644]
[1731179418588,0.03235219,3068.9,3068.0,0.3178644]
[1731179418889,0.7507,3068.7,3067.8,0.3178644]
[1731179419188,0.03235219,3068.6,3067.6,0.3178644]
[1731179419383,0.03235219,3068.6,3067.4,0.38305801]
[1731179420349,0.03235219,3068.6,3067.3,2.0699644]
[1731179420974,0.03235219,3068.6,3067.4,0.06519358]
[1731179421174,0.03235219,3068.6,3067.3,2.0699644]
[1731179421493,0.03235219,3068.6,3067.4,0.06519358]
[1731179421794,0.7507,3068.5,3067.3,1.7521]
[1731179421995,0.03235219,3068.4,3067.3,1.7521]
[1731179422347,0.03235219,3068.4,3067.3,0.98]
[1731179427482,0.7507,3068.3,3067.3,0.98]
[1731179427682,0.03235219,3068.2,3067.3,0.98]
[1731179428197,0.7507,3067.9,3066.5,0.31719135]
[1731179428373,0.03235219,3067.8,3066.7,2.97130124]
[1731179428573,0.03235219,3067.8,3066.8,0.06520542]
[1731179428884,0.03235219,3067.8,3066.7,2.97130124]
[1731179430673,0.03235219,3067.8,3066.8,0.06520165]
[1731179431264,0.03235219,3067.8,3066.7,2.97130124]
[1731179431539,0.7918,3067.7,3066.4,2.97130124]
[1731179431707,0.03235219,3067.6,3066.4,2.97130124]
[1731179431885,0.09059553,3067.6,3066.4,2.97130124]
[1731179432065,0.7918,3067.5,3066.3,0.98]
[1731179432388,0.03235219,3067.4,3066.3,0.98]
[1731179432707,0.05786299,3067.3,3066.3,0.98]
[1731179432865,0.03235219,3067.2,3066.3,0.98]
[1731179433291,0.03235219,3067.4,3066.3,0.98]
[1731179433614,0.84966198,3067.3,3066.3,0.98]
[1731179433796,0.03235219,3067.2,3066.3,0.98]
[1731179438381,0.03235219,3067.2,3066.4,3.03651933]
[1731179440010,0.03235219,3067.2,3066.3,0.98]
[1731179442713,0.7918,3067.3,3066.7,2.97130124]
[1731179442921,0.7918,3068.6,3067.1,2.97130124]
[1731179443079,0.7918,3068.4,3067.1,2.97130124]
[1731179443281,0.03235219,3068.3,3067.1,2.97130124]
[1731179443502,0.08468073,3068.3,3067.1,2.97130124]
[1731179443717,0.08468073,3068.3,3067.2,0.06519493]
[1731179443919,0.08468073,3068.3,3067.1,2.97130124]
[1731179444595,0.7918,3068.2,3066.7,0.83]
[1731179444804,0.7918,3068.2,3066.5,5.97130124]
[1731179444805,0.82415219,3068.1,3066.5,2.97130124]
[1731179445007,0.87638863,3068.1,3066.3,3.98]
[1731179445229,0.87638863,3068.1,3066.3,0.98]
[1731179445383,0.55,3068.0,3066.4,0.38168402]
[1731179445583,0.87628583,3067.9,3066.4,0.38168402]
[1731179446194,0.87628583,3067.9,3066.5,3.03651166]
[1731179446792,0.87628583,3067.9,3066.5,3.41819568]
[1731179447634,0.87628583,3067.9,3066.6,0.38168402]
[1731179447790,0.87628583,3067.9,3066.7,0.44689381]
[1731179447989,0.87628583,3067.9,3066.8,0.38168402]
[1731179448336,0.87628583,3067.9,3066.9,0.38168402]
[1731179448830,0.87628583,3067.9,3067.0,0.38168402]
[1731179449045,0.87628583,3067.9,3067.1,0.38168402]
[1731179449189,0.87628583,3067.9,3067.2,0.38168402]
[1731179449392,0.87628583,3067.9,3067.3,0.38168402]
[1731179449726,0.87628583,3067.9,3066.3,0.98]
[1731179449727,0.87628583,3067.9,3067.4,0.38168402]
[1731179449891,0.87628583,3067.9,3067.5,0.38168402]
[1731179450229,0.87628583,3067.9,3067.6,0.38168402]
[1731179450447,0.87628583,3067.9,3067.7,0.38168402]
[1731179450747,0.87628583,3067.9,3067.8,0.38168402]
[1731179451843,0.87628583,3067.9,3066.5,2.97130124]
[1731179452020,0.87628583,3067.9,3066.6,0.38277433]
[1731179452218,0.87628583,3067.9,3066.7,0.38277433]
[1731179452419,0.87628583,3067.9,3066.8,0.38277433]
[1731179452619,0.87628583,3067.9,3066.9,0.38277433]
[1731179452832,0.87628583,3067.9,3067.0,0.38277433]
[1731179453052,0.87628583,3067.9,3067.1,0.38277433]
[1731179453246,0.87628583,3067.9,3067.2,0.38277433]
[1731179453454,0.87628583,3067.9,3067.3,0.38277433]
[1731179453650,0.55,3067.8,3067.4,0.38277433]
[1731179453847,0.85815219,3067.7,3067.5,0.38277433]
[1731179454014,0.91018473,3067.7,3067.6,0.38277433]
[1731179454918,0.91018473,3067.7,3067.6,0.38298813]
[1731179460510,0.8258,3067.6,3066.2,3.0]
[1731179460845,0.85815219,3067.5,3066.3,0.44868657]
[1731179461142,0.91008881,3067.5,3066.3,0.44868657]
[1731179461348,0.91008881,3067.5,3066.4,0.38347101]
[1731179461655,0.91008881,3067.5,3066.5,0.33347101]
[1731179461948,0.91008881,3067.5,3066.1,2.97130124]
[1731179462123,0.91008881,3067.5,3066.2,3.0]
[1731179462735,0.91008881,3067.5,3066.3,0.0652155]
[1731179464224,0.91008881,3067.5,3066.2,3.0]
[1731179464627,0.55,3067.4,3065.9,0.98]
[1731179464824,0.85815219,3067.3,3065.8,3.21407192]
[1731179465007,0.90997768,3067.3,3065.8,3.21407192]
[1731179465771,0.90997768,3067.3,3065.9,0.06522063]
[1731179469078,0.90997768,3067.3,3065.8,3.21407192]
[1731179469366,0.90997768,3067.3,3065.3,0.33988096]
[1731179469367,0.7719,3066.3,3065.3,0.33988096]
[1731179469571,0.03235219,3066.2,3064.9,3.78660124]
[1731179469877,0.03235219,3066.2,3065.0,0.06524383]